Cogmind - Beta 13 @@@ ROGUE MODE // 2024.03.03 @ 14:45:26 Player: TheSlyFawkes Result: Destroyed by S-27 Virus with Autogun Performance ------------- Evolutions (4) 2000 Regions Visited (7) 1400 Robots Destroyed (14) 70 Value Destroyed (136) 136 Prototype IDs (2) 40 Alien Tech Used (0) 0 Bonus (500) 500 TOTAL SCORE: 4146 Bonus ------- Entered DSFs 500 Cogmind --------- Core Integrity 0/850 Matter 300/300 Energy 100/100 System Corruption 2% Temperature Cool (0) Movement Core (50) Location -6/Factory Parts ------- > --- POWER (3) -------- (None) > --- PROPULSION (5) --- (None) > --- UTILITY (5) ------ (None) > --- WEAPON (2) ------- (None) > --- INVENTORY (5) ---- Experimental Sensor Array Transmission Jammer Improved Propulsion Shielding Peak State ------------ > --- POWER ------------ Micro Nuclear Core > --- PROPULSION ------- Flight Unit Flight Unit Flight Unit Flight Unit > --- UTILITY ---------- Signal Interpreter Improved Propulsion Shielding > --- WEAPON ----------- Assault Rifle Mining Claw > --- INVENTORY -------- Light Ion Engine Experimental Sensor Array [Rating: 15] Favorites ----------- Power Light Ion Engine Engine Light Ion Engine Power Core Micro Nuclear Core Propulsion Flight Unit Wheel Compact Wheel Flight Unit Flight Unit Utility Signal Interpreter Storage Small Storage Unit Processor Signal Interpreter Protection Improved Propulsion Shielding Weapon Assault Rifle Energy Gun Medium Laser Ballistic Gun Assault Rifle Slashing Weapon Mining Claw Build | -11 -10 -10 -10 -9 -7 -7 -6 ------- Run | Yrd Mat Min Sub Rec Fac DSF Fac Slots Evolved 8 | . . . . . 6 . 2 Power 2 | . . . . . 1 . 1 Propulsion 3 | . . . . . 2 . 1 Utility 3 | . . . . . 3 . . Weapon . | . . . . . . . . Parts Attached 30 | 7 4 7 1 2 4 1 4 Power 6 | 1 . 2 . . 2 . 1 Engine 5 | 1 . 2 . . 1 . 1 Core 1 | . . . . . 1 . . Reactor . | . . . . . . . . Propulsion 15 | 2 3 3 1 1 2 . 3 Treads . | . . . . . . . . Leg . | . . . . . . . . Wheel 2 | 2 . . . . . . . Hover . | . . . . . . . . Flight 13 | . 3 3 1 1 2 . 3 Utility 3 | 1 1 . . . . 1 . Device . | . . . . . . . . Storage 1 | 1 . . . . . . . Processor 1 | . 1 . . . . . . Hackware . | . . . . . . . . Protection 1 | . . . . . . 1 . Artifact . | . . . . . . . . Weapon 6 | 3 . 2 . 1 . . . Energy Gun 1 | 1 . . . . . . . Energy Cannon . | . . . . . . . . Ballistic Gun 4 | 2 . 2 . . . . . Ballistic Cannon . | . . . . . . . . Launcher . | . . . . . . . . Special Weapon . | . . . . . . . . Impact Weapon . | . . . . . . . . Slashing Weapon 1 | . . . . 1 . . . Piercing Weapon . | . . . . . . . . Special Melee Weapon . | . . . . . . . . Unidentified Prototypes . | . . . . . . . . Parts Lost 12 | . . 2 1 . . 4 5 Power 3 | . . 1 . . . 1 1 Propulsion 7 | . . 1 1 . . 2 3 Utility 1 | . . . . . . . 1 Weapon 1 | . . . . . . 1 . Highest Loss Streak 4 | . . 2 1 . . 2 4 To Critical Strikes . | . . . . . . . . Average Slot Usage (%) 58 | . 71 61 71 76 61 54 19 Engine 7 | . 9 6 14 14 . . . Wheel 3 | . 18 . . . . . . Flight 20 | . 9 26 28 28 30 22 9 Storage 1 | . 9 . . . . . . Processor 9 | . 1 14 14 14 7 7 3 Protection 1 | . . . . . . 7 4 Energy Gun 5 | . 14 11 . . . . . Ballistic Gun 6 | . 9 2 14 14 7 7 . Naked Turns 35 | . . . . . . . 35 Heaviest Build 12 | 12 12 5 5 7 10 12 5 Greatest Support 26 | 26 26 8 8 8 16 16 10 Greatest Overweight (x) 1 | . . . 1 . . 1 . Average Overweight (x) . | . . . . . . . . Largest Inventory Capacity 8 | 8 8 5 5 5 5 5 5 Average Capacity 5 | 7 7 5 5 5 5 5 5 Most Carried 7 | 6 7 5 5 5 3 4 5 Average Carried 4 | 3 6 4 5 4 1 3 3 Final Capacity 8 | 8 5 5 5 5 5 5 5 Final Carried 6 | 6 5 5 5 4 2 4 3 Class Distribution -------------------- 98% | Mutant Dominant Class ---------------- Mutant | -10/Materials Mutant | -10/Mines Mutant | -10/Subcaves Mutant | -9/Recycling Scavenger-Sprinter | -7/Factory Mutant | -7/DSF Mutant | -6/Factory Resources | -11 -10 -10 -10 -9 -7 -7 -6 ----------- Run | Yrd Mat Min Sub Rec Fac DSF Fac Matter Collected 445 | 176 101 126 26 16 . . . Remotely . | . . . . . . . . Salvage Created 282 | . 101 167 14 . . . . Parts 23 | . 9 12 2 . . . . Haulers Intercepted . | . . . . . . . . Recyclers Shooed 1 | . . 1 . . . . . Parts Field Recycled . | . . . . . . . . Retrieved Matter . | . . . . . . . . Parts Self-Destructed 4 | . . . 4 . . . . Prevented . | . . . . . . . . Kills | -11 -10 -10 -10 -9 -7 -7 -6 ------- Run | Yrd Mat Min Sub Rec Fac DSF Fac Combat Hostiles Destroyed 13 | . 6 6 1 . . . . Guns 13 | . 6 6 1 . . . . Classes Destroyed 2 | . 1 1 . . . . . Recycler 1 | . . 1 . . . . . Swarmer 13 | . 6 6 1 . . . . Best Kill Streak 4 | . 3 4 1 . . . . Combat Bots Only 3 | . 3 3 1 . . . . Max Kills in Single Turn 1 | . 1 1 1 . . . . Gunslinging . | . . . . . . . . Exploded . | . . . . . . . . Melee . | . . . . . . . . Uniques/NPCs Destroyed . | . . . . . . . . Combat | -11 -10 -10 -10 -9 -7 -7 -6 -------- Run | Yrd Mat Min Sub Rec Fac DSF Fac Hostile Shots Fired 262 | . 19 24 51 . . 19 149 Missed 122 | . 4 3 25 . . 12 78 Damage Taken 1949 | . 121 166 204 . . 430 1028 Core 1272 | . 30 58 70 . . 257 857 Absorbed by Shields . | . . . . . . . . Redirected to Shielding 101 | . . . . . . 49 52 Core Remaining (%) 66 | 100 . . . 36 . 63 . Volleys Fired 52 | . 11 32 9 . . . . Largest 2 | . 2 1 1 . . . . Hottest 70 | . 70 50 20 . . . . Shots Fired 63 | . 22 32 9 . . . . Gun 63 | . 22 32 9 . . . . Cannon . | . . . . . . . . Launcher . | . . . . . . . . Special . | . . . . . . . . Kinetic 20 | . 11 . 9 . . . . Thermal 43 | . 11 32 . . . . . Explosive . | . . . . . . . . Electromagnetic . | . . . . . . . . Robot Hit Streak 7 | . 7 7 1 . . . . Robot Miss Streak 4 | . 1 3 4 . . . . Penetration Max . | . . . . . . . . Secondary Targets . | . . . . . . . . Shots Hit Robots 37 | . 15 20 2 . . . . Core Hits 20 | . 6 8 1 . . . 5 Critical Kills . | . . . . . . . . Critical Parts Destroyed . | . . . . . . . . Critical Strikes . | . . . . . . . . Melee Attacks . | . . . . . . . . Impact . | . . . . . . . . Slashing . | . . . . . . . . Piercing . | . . . . . . . . Sneak Attacks . | . . . . . . . . Combat Hostiles . | . . . . . . . . Follow-up Attacks . | . . . . . . . . Damage Inflicted 583 | . 194 251 35 . . . 103 Guns 480 | . 194 251 35 . . . . Cannons . | . . . . . . . . Explosions . | . . . . . . . . Melee . | . . . . . . . . Ramming 103 | . . . . . . . 103 Kinetic 104 | . 69 . 35 . . . . Thermal 376 | . 125 251 . . . . . Explosive . | . . . . . . . . Electromagnetic . | . . . . . . . . Impact . | . . . . . . . . Slashing . | . . . . . . . . Piercing . | . . . . . . . . Highest Corruption 2 | . . . . . . . 2 Average Corruption 1 | . . . . . . . 1 Corruption Purged . | . . . . . . . . Corruption Blocked . | . . . . . . . . Effects 1 | . . . . . . . 1 Message Errors 1 | . . . . . . . 1 Overload Shots . | . . . . . . . . Overflow Damage 3 | . . . . . . . 3 Projectiles . | . . . . . . . . Explosions . | . . . . . . . . Melee 3 | . . . . . . . 3 Knockbacks . | . . . . . . . . Impact . | . . . . . . . . Kinetic . | . . . . . . . . Secondary . | . . . . . . . . Self-Inflicted Damage 46 | . . . . . . . 46 Shots . | . . . . . . . . Rammed 24 | . . . . . . . 24 Targets Rammed 24 | . . . . . . . 24 Kicked . | . . . . . . . . Crushed . | . . . . . . . . Highest Temperature 191 | . 56 191 . . . . . Average Temperature 88 | . 25 121 . . . . . Received Heat Transfer 66 | . . . 48 . . . 18 Siege Activations . | . . . . . . . . Robots Corrupted . | . . . . . . . . Combat Hostiles . | . . . . . . . . Parts Fried . | . . . . . . . . Impact Corruptions 1 | . . . . . . . 1 Robots Melted . | . . . . . . . . Combat Hostiles . | . . . . . . . . Parts Melted 1 | . . 1 . . . . . Heat Transferred 1110 | . 370 740 . . . . . Parts Sabotaged . | . . . . . . . . Parts Stolen . | . . . . . . . . Parts Stripped . | . . . . . . . . Power Chain Reactions . | . . . . . . . . Alert | -11 -10 -10 -10 -9 -7 -7 -6 ------- Run | Yrd Mat Min Sub Rec Fac DSF Fac Peak Influence 407 | . 202 263 . 117 49 34 407 Initial 108 | . . 78 . 108 49 34 12 Average 134 | . 103 130 . 112 49 24 257 Maximum Alert Level 2 | . 1 1 . . . . 2 Low Security (%) 78 | 100 99 79 . 100 100 100 29 Level 1 20 | . . 20 . . . . 66 Level 2 . | . . . . . . . 4 Level 3 . | . . . . . . . . Level 4 . | . . . . . . . . Level 5 . | . . . . . . . . High Security . | . . . . . . . . Max Security . | . . . . . . . . Squads Dispatched 6 | . . . . . 1 2 3 Investigation 2 | . . . . . 1 . 1 Extermination . | . . . . . . . . Reinforcement 4 | . . . . . . 2 2 Assault . | . . . . . . . . Garrison . | . . . . . . . . Intercept . | . . . . . . . . Searches Triggered . | . . . . . . . . Construction Impeded . | . . . . . . . . Haulers Reinforced . | . . . . . . . . Active Scanning Responses . | . . . . . . . . Cargo Convoy Interrupts . | . . . . . . . . Stealth | -11 -10 -10 -10 -9 -7 -7 -6 --------- Run | Yrd Mat Min Sub Rec Fac DSF Fac Distress Signals 2 | . 1 . . . . . 1 Communications Jammed . | . . . . . . . . Distress Signals . | . . . . . . . . Times Spotted 66 | . 7 10 18 1 . 5 25 Peak Tracking Total 7 | . 3 3 6 1 3 4 7 Tactical Retreats 14 | . 1 2 2 . . 1 8 Traps | -11 -10 -10 -10 -9 -7 -7 -6 ------- Run | Yrd Mat Min Sub Rec Fac DSF Fac Traps Triggered 4 | . . . . . 1 . 3 Indirectly . | . . . . . . . . Trap Hack Attempts . | . . . . . . . . Triggered . | . . . . . . . . Disarmed . | . . . . . . . . Reprogrammed . | . . . . . . . . Reused . | . . . . . . . . Traps Extracted . | . . . . . . . . Installed . | . . . . . . . . Triggered . | . . . . . . . . Machines | -11 -10 -10 -10 -9 -7 -7 -6 ---------- Run | Yrd Mat Min Sub Rec Fac DSF Fac Machines Disabled . | . . . . . . . . Max in Single Turn . | . . . . . . . . Machines Repaired . | . . . . . . . . Machines Dismantled . | . . . . . . . . Machines Sabotaged . | . . . . . . . . Overloaded Fab Kills . | . . . . . . . . Hacking | -11 -10 -10 -10 -9 -7 -7 -6 --------- Run | Yrd Mat Min Sub Rec Fac DSF Fac Machines Accessed 7 | . 2 . . 3 2 . . Terminals 7 | . 2 . . 3 2 . . Fabricators . | . . . . . . . . Repair Stations . | . . . . . . . . Recycling Units . | . . . . . . . . Scanalyzers . | . . . . . . . . Garrison Access . | . . . . . . . . Total Hacks 13 | . 4 . . 7 2 . . Successful 7 | . 1 . . 5 1 . . Failed 6 | . 3 . . 2 1 . . Catastrophic 3 | . 2 . . . 1 . . Database Lockouts . | . . . . . . . . Manual 9 | . 4 . . 4 1 . . Terminals 13 | . 4 . . 7 2 . . Fabricators . | . . . . . . . . Repair Stations . | . . . . . . . . Recycling Units . | . . . . . . . . Scanalyzers . | . . . . . . . . Garrison Access . | . . . . . . . . Terminal Hacks 2 | . . . . 1 1 . . Prototype ID Bank 1 | . . . . 1 . . . Open DSF 1 | . . . . . 1 . . Fabricator Hacks . | . . . . . . . . Repair Station Hacks . | . . . . . . . . Recycling Unit Hacks . | . . . . . . . . Scanalyzer . | . . . . . . . . Garrison Access Hacks . | . . . . . . . . Unauthorized Hacks 5 | . 1 . . 4 . . . Terminals 5 | . 1 . . 4 . . . Botnet 4 | . 1 . . 3 . . . Operators 1 | . . . . 1 . . . Fabricators . | . . . . . . . . Repair Stations . | . . . . . . . . Recycling Units . | . . . . . . . . Scanalyzers . | . . . . . . . . Garrison Access . | . . . . . . . . Data Cores Recovered . | . . . . . . . . Used . | . . . . . . . . Hacking Detections 6 | . 2 . . 3 1 . . Full Trace Events . | . . . . . . . . Feedback Events . | . . . . . . . . Feedback Blocked . | . . . . . . . . Robot Schematics Acquired . | . . . . . . . . Robots Built . | . . . . . . . . Authchips . | . . . . . . . . Time . | . . . . . . . . Total Robot Build Rating . | . . . . . . . . Part Schematics Acquired . | . . . . . . . . Parts Built . | . . . . . . . . Authchips . | . . . . . . . . Time . | . . . . . . . . Total Part Build Rating . | . . . . . . . . Parts Repaired . | . . . . . . . . Time . | . . . . . . . . Parts Recycled . | . . . . . . . . Recycled Matter . | . . . . . . . . Retrieved Matter . | . . . . . . . . Retrieved Components . | . . . . . . . . Parts Scanalyzed . | . . . . . . . . Part Schematics Acquired . | . . . . . . . . Parts Damaged . | . . . . . . . . Bothacking | -11 -10 -10 -10 -9 -7 -7 -6 ------------ Run | Yrd Mat Min Sub Rec Fac DSF Fac Used RIF Installer . | . . . . . . . . Robots Hacked . | . . . . . . . . Non-combat . | . . . . . . . . Combat . | . . . . . . . . Robot Hacks Applied . | . . . . . . . . Relay Couplers Released . | . . . . . . . . Fabnet Peak Effective % . | . . . . . . . . Robots Rewired . | . . . . . . . . Allies Hacked . | . . . . . . . . Hacks Repelled . | . . . . . . . . Allies | -11 -10 -10 -10 -9 -7 -7 -6 -------- Run | Yrd Mat Min Sub Rec Fac DSF Fac Total Allies . | . . . . . . . . Largest Group . | . . . . . . . . Highest-Rated Group . | . . . . . . . . Highest-Rated Ally . | . . . . . . . . Total Orders . | . . . . . . . . Ally Attacks . | . . . . . . . . Total Damage . | . . . . . . . . Kills . | . . . . . . . . Allies Corrupted . | . . . . . . . . Allies Melted . | . . . . . . . . Intel | -11 -10 -10 -10 -9 -7 -7 -6 ------- Run | Yrd Mat Min Sub Rec Fac DSF Fac Robot Analysis Total . | . . . . . . . . Derelict Logs Recovered 3 | . . 2 1 . . . . Drone Launches . | . . . . . . . . Drone Recoveries . | . . . . . . . . Exploration | -11 -10 -10 -10 -9 -7 -7 -6 ------------- Run | Yrd Mat Min Sub Rec Fac DSF Fac Turns Passed 1536 | 52 262 470 193 155 38 94 272 Spaces Moved 2968 | 40 355 848 467 398 91 147 622 Core 29 | 5 . . . . . . 24 Treads . | . . . . . . . . Legs . | . . . . . . . . Wheels 180 | 35 145 . . . . . . Hover . | . . . . . . . . Flight 2759 | . 210 848 467 398 91 147 598 Fastest Speed 31 | 50 37 37 37 37 31 31 37 Average Speed 40 | 85 58 37 37 37 31 39 38 Slowest Speed 120 | 100 90 40 120 37 31 117 50 Overloaded Moves . | . . . . . . . . Propulsion Burnouts . | . . . . . . . . Robots Hopped 18 | . 1 7 . 1 1 1 7 Cave-ins Triggered . | . . . . . . . . Exploration Rate (%) 48 | 3 58 94 37 85 3 86 20 Regions Visited 7 Branch Regions 3 Pre-discovered Areas 2 | . . 2 . . . . . Known Exits Taken 5 | . 1 1 1 1 1 . . Unknown Exits Taken 1 | 1 . . . . . . . Scrap Searched 1 | . . 1 . . . . . Spaces Dug . | . . . . . . . . Terrain Destroyed . | . . . . . . . . Melee . | . . . . . . . . Projectile . | . . . . . . . . AOE . | . . . . . . . . Terrain Rammed . | . . . . . . . . Walls Destroyed . | . . . . . . . . Machines Disabled . | . . . . . . . . Actions | -11 -10 -10 -10 -9 -7 -7 -6 --------- Run | Yrd Mat Min Sub Rec Fac DSF Fac Total 3213 | 54 388 964 476 403 99 180 649 Wait 131 | 2 7 78 . 4 4 32 4 Move 2926 | 39 352 833 466 395 88 144 609 Hop 17 | . 1 7 . 1 1 1 6 Pick Up 16 | 6 4 3 . . . 2 1 Fast Attach 17 | 6 2 3 1 1 1 1 2 Attach 8 | . 1 2 . . 3 . 2 Detach 1 | . . . . . 1 . . Swap 5 | 1 1 2 . 1 . . . Drop 16 | . 9 4 . 1 1 . 1 Fire 52 | . 11 32 9 . . . . Melee . | . . . . . . . . Ram 24 | . . . . . . . 24 Kick . | . . . . . . . . Crush . | . . . . . . . . Escape Stasis . | . . . . . . . . Rewire . | . . . . . . . . Trap . | . . . . . . . . Miscellaneous . | . . . . . . . . Route ------- -11/Scrapyard -10/Materials (discovered 2 exits: *Mat / *Min) -10/Mines (discovered 3 exits: *Mat x2 / *Sub) -10/Subcaves -9/Recycling -7/Factory (discovered 2 exits: *Low / DSF) -7/DSF -6/Factory History --------- Turn | Location | Event 20 | -11/Scrapyard | Discovered new exit (range 16) 53 | -11/Scrapyard | Entered Materials 256 | -10/Materials | Discovered new exit (range 8) 303 | -10/Materials | Discovered new exit (range 7) 311 | -10/Materials | Identified exit to Mines 314 | -10/Materials | Build established: Mutant 315 | -10/Materials | Entered Mines 318 | -10/Mines | Identified exit to Materials 339 | -10/Mines | Learned location of Zion (-6) 344 | -10/Mines | Learned location of Storage (-9) 369 | -10/Mines | Found a damaged Exp. Sensor Array with a note attached 372 | -10/Mines | Found Prototype Device 421 | -10/Mines | Discovered exit to Materials (range 6) 766 | -10/Mines | Received a Rocket Launcher from a helpful Derelict 780 | -10/Mines | Discovered new exit (range 14) 785 | -10/Mines | Identified exit to Subcaves 785 | -10/Mines | Entered Subcaves 789 | -10/Subcaves | Shifting Twisted Machinery released Riot Gun 791 | -10/Subcaves | Shifting Twisted Machinery released Sub. Laser 875 | -10/Subcaves | Shifting Twisted Machinery released Sub. Machine Gun 930 | -10/Subcaves | Shifting Twisted Machinery released Spk. Treads 933 | -10/Subcaves | Shifting Twisted Machinery released Sub. Power Source 943 | -10/Subcaves | Discovered new exit (range 16) 968 | -10/Subcaves | Core integrity fell below 50% 975 | -10/Subcaves | Learned Materials stockpile data 978 | -10/Subcaves | Identified exit to Recycling 978 | -10/Subcaves | Entered Recycling 1121 | -9/Recycling | Discovered new exit (range 15) 1133 | -9/Recycling | Identified exit to Factory 1133 | -9/Recycling | Entered Factory 1133 | -7/Factory | Evolved 6 slots: Power x1, Propulsion x2, Utility x3 1149 | -7/Factory | Discovered new exit (range 4) 1155 | -7/Factory | Identified exit to Lower Caves 1169 | -7/Factory | Identified exit to DSF 1171 | -7/Factory | Entered DSF 1201 | -7/DSF | Additional patrols routed to DSF 1259 | -7/DSF | Discovered new exit (range 16) 1265 | -7/DSF | Identified exit to Factory 1265 | -7/DSF | Entered Factory 1265 | -6/Factory | Evolved 2 slots: Power x1, Propulsion x1 1506 | -6/Factory | Core integrity fell below 50% 1518 | -6/Factory | Core integrity fell below 20% 1533 | -6/Factory | Lost 4 parts (1p2n1u) 1537 | -6/Factory | Destroyed by S-27 Virus with Autogun Last Messages --------------- Flight Unit destroyed. Nuclear Pulse Thruster destroyed. Slammed into S-27 Virus. Destabilizing: System corrupted (+1). Slammed into S-27 Virus. Destabilizing: System corrupted (+1). Triggered Alarm Trap. An alarm sounds. ALERT: Alarm triggered, dispatching investigation squad. Slammed into S-27 Virus. Destabilizing: Core damaged (-25). Slammed into S-27 Virus. ONE>T&L7MPFNGDYT/E0 ALERT: Security rotation in progress. Slammed into S-27 Virus. Destroyed VTOL Module. S-27 Virus system corrupted by crushing effect. S-27 Virus system terminally corrupted. Slammed into S-27 Virus. Map ----- +----------------------------------------------------+ | ???????# + +????????????? | | ???????# # ######+##+## #????????????? | | ???????# ## ### # #????????????? | | ???????# ## #?# ! + #????????????? | | ???????######### #?# # #????????????? | | ???????????????# #?# # #????????????? | | ????????######## #?# # #????????????? | | ??????# #?# # #????? #???? | | ????????######## #?# # #????? #???? | | ???????????????# #?# # #????? #???? | | ?????????????### ####+######## #????? #???? | | ?????????????# ## #??????# #????? #???? | | ?????????????# ## #??????# #????# #???? | | ?????????????# #??????# #????# #???? | | ?????????????# ## #??????# #????# #???? | | ?????????????# ## ######## #????+ #???? | | ?????????????######## # # #????# +???? | | ????????????????????# # """" # ####?# #???? | | ????????????????????# # """" / ### ##??? | | ????????????????????#%# """" # ## #### | | ????????????????????#%# """" # ## #! | | ????????????????????#%# + T # | | ????????????????????#%############## # | | ????????????????????#s#????????????# # | | ?????################/###########??### ### | | ?????# ##@s[ #????# #?### | | ?????# ## %% #????# ##### | | ?????# ## """" #????# | | ?????# """" """" ## """" #????# ##+### | | ?????# """" """" ## """" #????# # ?? | | ?????# """" """" ## """" #????# # ?? | | ?????# """" """" ## ""#????# # ? | | ?????# """" """" ## """" ?"?????# # ? | | ?????# """" """" ## """" ????????#/###### | | ?????# ## """" ????????# | | ?????# ## """" ?????????# | | ?????# ## ? ?????????# | | ?????#######+#############+########### | | ????????# # | | ????????# # | | ????????# + """" | | ????????# """ !!! # """" | | ????????# """ !!! # """" | | ????????### ##### """ !! # """" | | ??????????# #???# # | | ??????????# #???# ] + | | ??????????# #???# ####################### | | ??????????# #####+########??????????????# | | ??????????# # #??????????????# | | ?########?# # #??????????????# | +----------------------------------------------------+ Best States ------------- Heat Dissipation 37 Energy Generation 15 Energy Capacity 150 Matter Stores 300 Matter Capacity 300 Sight Range 16 Terrain Scan Density 10 Propulsion Shielding 66 Evasion (%) 63 Item Schematics ----------------- None Robot Schematics ------------------ None Fabricated ------------ Nothing Alien Tech Used ----------------- None Achievements -------------- None Challenges ------------ None Game ------ Seed ImprovedHardcellLaser Manual? 0 Play Time 00:31:34 Cumulative 34.6 hours Start 2024.03.03 @ 14:05:34 End 2024.03.03 @ 14:45:26 Sessions 1 Manual Loads 0 Difficulty Rogue Special Mode None Game No. 53 Rogue 52 Adventurer 1 Explorer 0 Win Type - Total 0 Types 0/0/0/0/0/0/0/0/0 Lore% 20 Gallery% 26 Achievement% 29 Wizard Run 0 Options --------- Layout 1 ASCII 0 Keyboard 0 Movement Numpad Keybinds 0 Fullscreen 1 Font 24/Smallcaps Map View 50x35 Zoom Use 0% Tactical HUD 0 Map Filters NONE Filters NONE Steam 1 RUN: c2befe2e-93d9-4396-aa09-3eb4dc8844fa